[Event "SWE-ch Masters 2018"]
[Site "Ronneby"]
[Date "2018.07.07"]
[Round "8"]
[White "Adler, Bo"]
[Black "Palmblad, Jan Peter"]
[Result "1-0"]
[ECO "B21"]
[WhiteElo "2177"]
[BlackElo "2099"]
[Annotator "NA"]
[PlyCount "55"]
[EventDate "2018.06.30"]
[EventType "tourn"]
[EventCountry "SWE"]
[SourceTitle "playchess.com"]
[Source "ChessBase"]
[SourceQuality "1"]
[TimeControl "40/5400+30:1800+30"]

1. e4 {[%emt 0:00:00]} c5 {[%emt 0:00:12]} 2. f4 {[%emt 0:00:00]} d6 {[%emt 0:00:29]} 3. Nf3 {[%emt 0:00:01]} Nc6 {[%emt 0:00:13]} 4. Bb5 {[%emt 0:00:36]} Bd7 {[%emt 0:00:41]} 5. d4 {[%emt 0:02:26]} cxd4 {[%emt 0:00:11]} 6. Nxd4 {[%emt 0:00:06]} Qb6 {[%emt 0:01:32]} 7. Be3 {[%emt 0:01:22]} e5 {[%emt 0:08:09]} 8. Bxc6 {[%emt 0:04:27]} Bxc6 {[%emt 0:08:34]} 9. Nf5 {[%emt 0:05:52]} Qxb2 {[%emt 0:06:48]} 10. Nd2 {[%emt 0:01:07]} g6 {[%emt 0:03:29]} 11. Rb1 {[%emt 0:05:44]} Qxa2 {[%emt 0:00:47]} 12. Ng3 {[%emt 0:01:22]} exf4 {[%emt 0:09:03]} 13. Bxf4 {[%emt 0:02:42]} Qe6 {[%emt 0:13:15]} 14. O-O {[%emt 0:01:51]} Bh6 {[%emt 0:00:38]} 15. Qf3 {[%emt 0:12:44]} Bxf4 {[%emt 0:01:28]} 16. Qxf4 {[%emt 0:00:10]} Ne7 {[%emt 0:00:21]} 17. Nf3 {[%emt 0:01:01]} f6 {[%emt 0:08:25]} 18. Nd4 {[%emt 0:08:29]} Qe5 {[%emt 0:00:32]} 19. Qxf6 {[%emt 0:00:17]} Qxf6 {[%emt 0:00:08]} 20. Rxf6 {[%emt 0:00:04]} O-O-O {[%emt 0:05:07]} 21. Rf7 {[%emt 0:01:55]} Rd7 {[%emt 0:01:57]} 22. Nxc6 {[%emt 0:12:15]} bxc6 {[%emt 0:02:15]} 23. Ne2 {[%emt 0:00:09]} c5 {[%emt 0:01:16]} 24. Nc3 {[%emt 0:11:54]} Kc7 {[%emt 0:04:14]} 25. Rxe7 {[%emt 0:00:39]} Rxe7 {[%emt 0:00:34]} 26. Nd5+ {[%emt 0:00:05]} Kd7 {[%emt 0:00:07]} 27. Rb7+ {[%emt 0:00:06]} Ke6 {[%emt 0:00:07]} 28. Rxe7# 1-0

[Event "SWE-ch Masters 2018"]
[Site "Ronneby"]
[Date "2018.07.07"]
[Round "8"]
[White "Mardell, Jimmy"]
[Black "Bit-Narva, David"]
[Result "0-1"]
[ECO "B06"]
[WhiteElo "2173"]
[BlackElo "1977"]
[Annotator "NA"]
[PlyCount "84"]
[EventDate "2018.06.30"]
[EventType "tourn"]
[EventCountry "SWE"]
[SourceTitle "playchess.com"]
[Source "ChessBase"]
[SourceQuality "1"]
[TimeControl "40/5400+30:1800+30"]

1. d4 {[%emt 0:00:00]} d6 {[%emt 0:05:14]} 2. e4 {[%emt 0:00:00]} g6 {[%emt 0:00:10]} 3. Nc3 {[%emt 0:00:00]} Bg7 {[%emt 0:00:04]} 4. f4 {[%emt 0:00:00]} a6 {[%emt 0:00:05]} 5. Nf3 {[%emt 0:00:01]} Nd7 {[%emt 0:00:06]} 6. Bd3 {[%emt 0:00:49]} b5 {[%emt 0:00:06]} 7. a4 {[%emt 0:00:25] B06: Moderne Verteidigung} b4 {[%emt 0:00:19]} 8. Ne2 {[%emt 0:00:06]} c5 {[%emt 0:00:40]} 9. c3 {[%emt 0:00:13]} bxc3 {[%emt 0:01:29]} (9... Bb7 10. O-O Ngf6 11. e5 Nd5 12. Bd2 bxc3 13. bxc3 cxd4 14. cxd4 O-O {0-1 (49) Anand,V (2759)-Nakamura,H (2769) Leuven 2018}) 10. bxc3 {[%emt 0:00:18]} e6 {[%emt 0:00:24]} 11. O-O {[%emt 0:00:59]} Ne7 {[%emt 0:03:43]} 12. f5 {[%emt 0:07:11]} exf5 {[%emt 0:03:41]} 13. exf5 {[%emt 0:00:06]} Nf6 {[%emt 0:00:21]} 14. fxg6 {[%emt 0:05:42]} hxg6 {[%emt 0:00:06]} 15. dxc5 $146 {[%emt 0:00:57]} dxc5 {[%emt 0:00:07]} 16. Be3 {[%emt 0:00:24]} Qc7 {[%emt 0:11:08]} 17. Bf4 {[%emt 0:03:08]} Qa7 {[%emt 0:00:14]} 18. Bc4 {[%emt 0:03:53]} Bb7 {[%emt 0:02:51]} 19. Ne5 {[%emt 0:09:44]} Bd5 {[%emt 0:00:55]} 20. a5 {[%emt 0:13:42]} O-O {[%emt 0:02:13]} 21. Ng3 {[%emt 0:06:52]} Rad8 {[%emt 0:05:59]} 22. Qc1 {[%emt 0:00:13]} Ng4 $16 {[%emt 0:04:05]} (22... Nd7 $15 {behält die Oberhand.} 23. Bxd5 Nxe5 24. Bxe5 c4+ 25. Rf2 Bxe5 26. Bxc4 Nd5) 23. Nxg4 {[%emt 0:10:42]} Bxc4 {[%emt 0:00:04]} 24. Bh6 {[%emt 0:00:12]} f5 {[%emt 0:02:50]} 25. Bxg7 {[%emt 0:01:20]} Kxg7 {[%emt 0:00:12]} 26. Qh6+ {[%emt 0:02:21]} Kg8 {[%emt 0:00:20]} 27. Rf4 {[%emt 0:05:23]} fxg4 {[%emt 0:04:37]} 28. Rxc4 {[%emt 0:00:06]} Qd7 {[%emt 0:04:07]} 29. h3 {[%emt 0:04:59]} Qd3 {[%emt 0:01:04]} 30. Rxg4 {[%emt 0:00:38]} Qxc3 {[%emt 0:00:30]} 31. Rc1 {[%emt 0:01:26]} Qb2 {[%emt 0:03:01]} 32. Rh4 {[%emt 0:05:01]} Qg7 {[%emt 0:09:25]} 33. Qxg7+ Kxg7 {[%emt 0:00:04]} 34. Rxc5 {[%emt 0:01:48]} Rd1+ {[%emt 0:00:03]} 35. Kh2 {[%emt 0:00:08]} Rf2 {[%emt 0:00:41]} 36. Ne4 {[%emt 0:01:47]} Rf7 {[%emt 0:06:22]} 37. Rg4 {[%emt 0:06:37]} Ra1 {[%emt 0:05:34]} 38. Nd6 {[%emt 0:01:32]} Rff1 {[%emt 0:01:10]} 39. Nc4 {[%emt 0:02:36]} Nf5 {[%emt 0:00:45]} 40. Rxf5 {[%emt 0:01:50]} Rxf5 {[%emt 0:00:05]} 41. Rd4 {[%emt 0:32:16]} Ra4 {[%emt 0:33:41]} 42. Rd7+ {[%emt 0:00:17]} Rf7 {[%emt 0:00:05]} 0-1

[Event "SWE-ch Masters 2018"]
[Site "Ronneby"]
[Date "2018.07.07"]
[Round "8"]
[White "Tiger-Norqvist, Axel"]
[Black "Laksman, Efraim"]
[Result "1/2-1/2"]
[ECO "B31"]
[WhiteElo "2158"]
[BlackElo "2184"]
[Annotator "NA"]
[PlyCount "82"]
[EventDate "2018.06.30"]
[EventType "tourn"]
[EventCountry "SWE"]
[SourceTitle "playchess.com"]
[Source "ChessBase"]
[SourceQuality "1"]
[TimeControl "40/5400+30:1800+30"]

1. e4 {[%emt 0:00:00]} c5 {[%emt 0:00:00]} 2. Nf3 {[%emt 0:00:10]} Nc6 {[%emt 0:00:00]} 3. Bb5 {[%emt 0:00:08]} g6 {[%emt 0:00:00]} 4. Bxc6 {[%emt 0:00:07]} bxc6 {[%emt 0:00:03]} 5. O-O {[%emt 0:00:08]} Bg7 {[%emt 0:00:04]} 6. Re1 {[%emt 0:00:15]} Nf6 {[%emt 0:00:31]} 7. e5 {[%emt 0:00:35]} Nd5 {[%emt 0:00:07]} 8. d4 {[%emt 0:00:42]} cxd4 {[%emt 0:00:10]} 9. Qxd4 {[%emt 0:00:19]} Qb6 {[%emt 0:12:53]} 10. Qh4 {[%emt 0:07:07]} h6 {[%emt 0:00:06]} 11. Nbd2 {[%emt 0:07:02]} Nc7 {[%emt 0:31:03]} 12. Nc4 {[%emt 0:04:30]} Qb8 {[%emt 0:00:19]} 13. Nd6+ {[%emt 0:03:59]} Kf8 {[%emt 0:00:07]} 14. Nxc8 {[%emt 0:03:18]} Qxc8 {[%emt 0:00:05]} 15. Be3 {[%emt 0:03:40]} Ne6 {[%emt 0:01:12]} 16. Rad1 {[%emt 0:04:18]} Rb8 {[%emt 0:20:52]} 17. b3 {[%emt 0:08:13]} Rb7 {[%emt 0:00:07]} 18. Nd4 {[%emt 0:13:20]} Nxd4 {[%emt 0:06:33]} 19. Rxd4 {[%emt 0:04:54]} Qc7 {[%emt 0:03:16]} 20. Re4 {[%emt 0:05:52]} Qa5 {[%emt 0:01:40]} 21. f4 {[%emt 0:00:24]} Qxa2 {[%emt 0:07:45]} 22. Qf2 {[%emt 0:00:39]} Qa5 {[%emt 0:00:59]} 23. Ra4 {[%emt 0:00:38]} Qc7 {[%emt 0:00:43]} 24. Bxa7 {[%emt 0:01:17]} Kg8 {[%emt 0:00:38]} 25. Bd4 {[%emt 0:02:25]} d6 {[%emt 0:04:29]} 26. f5 {[%emt 0:08:58]} dxe5 {[%emt 0:01:16]} 27. fxg6 {[%emt 0:00:59]} fxg6 {[%emt 0:01:14]} 28. Ra8+ {[%emt 0:03:48]} Kh7 {[%emt 0:00:01]} 29. Rxh8+ {[%emt 0:00:10]} Kxh8 {[%emt 0:00:02]} 30. Bc5 {[%emt 0:00:27]} Bf6 {[%emt 0:02:43]} 31. Qe3 {[%emt 0:08:47]} Kg7 {[%emt 0:00:17]} 32. b4 {[%emt 0:03:46]} Qd8 {[%emt 0:01:46]} 33. Qf3 {[%emt 0:01:40]} Qd5 {[%emt 0:01:05]} 34. Rd1 {[%emt 0:00:48]} Qe6 {[%emt 0:02:46]} 35. Qd3 {[%emt 0:01:02]} Rb8 {[%emt 0:00:35]} 36. Qd7 {[%emt 0:01:36]} Qxd7 {[%emt 0:00:25]} 37. Rxd7 {[%emt 0:00:07]} Kf7 {[%emt 0:00:04]} 38. Rc7 {[%emt 0:00:18]} Rd8 {[%emt 0:00:01]} 39. Be3 {[%emt 0:00:58]} Rd6 {[%emt 0:00:27]} 40. c4 {[%emt 0:01:31]} Bg5 {[%emt 0:00:38]} 41. Bxg5 {[%emt 0:01:05]} hxg5 {[%emt 0:03:09]} 1/2-1/2

[Event "SWE-ch Masters 2018"]
[Site "Ronneby"]
[Date "2018.07.07"]
[Round "8"]
[White "Neretljak, Nedzad"]
[Black "Petersson, Baldur Teodor"]
[Result "1-0"]
[ECO "B42"]
[WhiteElo "2108"]
[BlackElo "2153"]
[Annotator "NA"]
[PlyCount "69"]
[EventDate "2018.06.30"]
[EventType "tourn"]
[EventCountry "SWE"]
[SourceTitle "playchess.com"]
[Source "ChessBase"]
[SourceQuality "1"]
[TimeControl "40/5400+30:1800+30"]

1. e4 {[%emt 0:00:00]} c5 {[%emt 0:00:00]} 2. Nf3 {[%emt 0:00:00]} e6 {[%emt 0:00:00]} 3. d4 {[%emt 0:00:00]} cxd4 {[%emt 0:00:00]} 4. Nxd4 {[%emt 0:00:00]} a6 {[%emt 0:00:00]} 5. Bd3 {[%emt 0:00:23]} Nf6 {[%emt 0:01:21]} 6. O-O {[%emt 0:01:11]} Qc7 {[%emt 0:01:43]} 7. Nc3 {[%emt 0:00:12]} Bc5 {[%emt 0:01:31]} 8. Nb3 {[%emt 0:01:38]} Be7 {[%emt 0:00:46]} 9. f4 {[%emt 0:00:32]} d6 {[%emt 0:06:40]} 10. Qf3 {[%emt 0:09:41]} Nbd7 {[%emt 0:02:07] B43: Sizilianisch (Paulsen-Variante)} 11. g4 {[%emt 0:01:23]} g6 {[%emt 0:02:48]} 12. g5 {[%emt 0:04:33]} Nh5 {[%emt 0:01:34]} 13. Be3 $146 {[%emt 0:00:35]} ({Vorgänger:} 13. Qf2 b5 14. a4 bxa4 15. Rxa4 O-O 16. Be2 Ng7 17. Be3 Bb7 18. Bd3 {½-½ (56) Garcia Martinez,S (2316)-Bruzon Batista,L (2648) Alcala de Henares 2006}) 13... b5 {[%emt 0:05:29]} 14. Bd4 {[%emt 0:00:45]} O-O {[%emt 0:00:18]} 15. a3 {[%emt 0:02:23]} Bb7 {[%emt 0:01:36]} 16. Be3 {[%emt 0:05:40]} Rae8 {[%emt 0:07:41]} 17. Qh3 {[%emt 0:00:57]} Nc5 {[%emt 0:08:10]} 18. Be2 {[%emt 0:05:55]} Ng7 {[%emt 0:03:07]} 19. Nxc5 {[%emt 0:03:28]} dxc5 {[%emt 0:00:06]} 20. Qh6 {[%emt 0:02:01] [#]} b4 $1 {[%emt 0:07:51]} 21. Rf3 {[%emt 0:08:37]} bxc3 {[%emt 0:00:19]} 22. Rh3 {[%emt 0:00:05]} Nh5 $19 {[%emt 0:00:09]} 23. Bxh5 {[%emt 0:00:28]} gxh5 {[%emt 0:00:48]} 24. f5 {[%emt 0:01:21]} f6 {[%emt 0:01:19]} 25. g6 {[%emt 0:00:34]} Bd6 {[%emt 0:00:25]} 26. Kf2 {[%emt 0:06:01]} Bxe4 {[%emt 0:11:38]} 27. Rg1 {[%emt 0:01:28]} Bxf5 {[%emt 0:04:48]} 28. Rxh5 {[%emt 0:00:23]} cxb2 {[%emt 0:03:41]} 29. gxh7+ {[%emt 0:02:24]} Kh8 {[%emt 0:00:25]} 30. Rg8+ {[%emt 0:00:12]} Rxg8 {[%emt 0:00:18]} 31. hxg8=Q+ {[%emt 0:00:13]} Kxg8 {[%emt 0:00:08]} 32. Qh8+ {[%emt 0:00:09]} Kf7 {[%emt 0:00:54]} 33. Rh7+ {[%emt 0:00:07]} Kg6 {[%emt 0:00:16]} 34. Rh6+ {[%emt 0:00:52]} Kf7 {[%emt 0:00:04]} 35. Qxf6+ {[%emt 0:00:08]} 1-0

[Event "SWE-ch Masters 2018"]
[Site "Ronneby"]
[Date "2018.07.07"]
[Round "8"]
[White "Svorono, Gabriel"]
[Black "Nordahl, Nils"]
[Result "1-0"]
[ECO "B52"]
[WhiteElo "2105"]
[BlackElo "1839"]
[Annotator "NA"]
[PlyCount "59"]
[EventDate "2018.06.30"]
[EventType "tourn"]
[EventCountry "SWE"]
[SourceTitle "playchess.com"]
[Source "ChessBase"]
[SourceQuality "1"]
[TimeControl "40/5400+30:1800+30"]

1. e4 {[%emt 0:00:00]} c5 {[%emt 0:00:00]} 2. Nf3 {[%emt 0:00:00]} d6 {[%emt 0:00:00]} 3. Bb5+ {[%emt 0:00:00]} Bd7 {[%emt 0:00:33]} 4. Bxd7+ {[%emt 0:00:00]} Qxd7 {[%emt 0:01:29]} 5. c4 {[%emt 0:00:17]} Nc6 {[%emt 0:00:23]} 6. d4 {[%emt 0:00:15]} cxd4 {[%emt 0:01:07]} 7. Nxd4 {[%emt 0:01:13]} e6 {[%emt 0:03:52]} 8. O-O {[%emt 0:01:36]} Be7 {[%emt 0:01:21]} 9. Nc3 {[%emt 0:00:28]} Nf6 {[%emt 0:00:30]} 10. Be3 {[%emt 0:00:49]} O-O {[%emt 0:01:05]} 11. Rc1 {[%emt 0:01:14] B52: Sicilian: Moscow Variation with 3...Bd7} (11. Qe2 Rfc8 12. b3 Bd8 13. Rac1 Ba5 14. Nxc6 Rxc6 15. Bg5 Ne8 16. Nb5 a6 17. Nd4 Rcc8 18. Rfd1 Qc7 19. Qg4 Bb4 {1-0 (30) Stevic,H (2597)-Kozul,Z (2602) Zadar 2015}) 11... Rfd8 {[%emt 0:00:35]} 12. f4 {[%emt 0:01:33]} Rac8 {[%emt 0:05:12]} 13. b3 {[%emt 0:00:33]} b6 {[%emt 0:04:06]} 14. Qf3 {[%emt 0:04:24]} Ne8 $146 {[%emt 0:07:12]} ({Predecessor:} 14... Qe8 15. g4 Nd7 16. Nxc6 Rxc6 17. Nb5 a6 {½-½ (29) O'Brien,R-Batchelor,A Canberra 1995}) 15. Nde2 {[%emt 0:03:09]} Bf6 {[%emt 0:04:21]} 16. g4 {[%emt 0:03:34]} Nc7 {[%emt 0:09:42]} 17. g5 {[%emt 0:00:32]} Be7 {[%emt 0:02:34]} 18. Qh5 {[%emt 0:05:10]} f5 {[%emt 0:07:27]} 19. Nd4 {[%emt 0:07:55]} g6 $14 {[%emt 0:09:56]} 20. Qf3 {[%emt 0:00:52]} Nxd4 {[%emt 0:10:29]} 21. Bxd4 {[%emt 0:00:42]} Bf8 {[%emt 0:03:44]} 22. Bf6 {[%emt 0:00:54]} Re8 {[%emt 0:00:58]} 23. Rcd1 {[%emt 0:00:59]} Qc6 {[%emt 0:02:49]} 24. e5 {[%emt 0:03:17]} Qc5+ {[%emt 0:04:46]} 25. Kh1 {[%emt 0:00:41]} dxe5 {[%emt 0:00:38]} 26. fxe5 {[%emt 0:00:21]} Be7 {[%emt 0:01:36]} 27. Rd7 {[%emt 0:00:13]} Nd5 {[%emt 0:12:45]} 28. cxd5 {[%emt 0:01:04]} Bxf6 {[%emt 0:00:43]} 29. exf6 {[%emt 0:00:17]} Qxc3 {[%emt 0:00:15]} 30. f7+ {[%emt 0:00:06]} 1-0

[Event "SWE-ch Masters 2018"]
[Site "Ronneby"]
[Date "2018.07.07"]
[Round "8"]
[White "Mattsson, Michael"]
[Black "Tegler, Erik"]
[Result "0-1"]
[ECO "B12"]
[WhiteElo "2032"]
[BlackElo "2073"]
[Annotator "NA"]
[PlyCount "68"]
[EventDate "2018.06.30"]
[EventType "tourn"]
[EventCountry "SWE"]
[SourceTitle "playchess.com"]
[Source "ChessBase"]
[SourceQuality "1"]
[TimeControl "40/5400+30:1800+30"]

1. e4 {[%emt 0:01:49]} c6 {[%emt 0:00:00]} 2. d4 {[%emt 0:00:56]} d5 {[%emt 0:00:00]} 3. e5 {[%emt 0:00:04]} Bf5 {[%emt 0:00:00]} 4. Nf3 {[%emt 0:00:12]} e6 {[%emt 0:00:28]} 5. Bd3 {[%emt 0:00:03]} Bg6 {[%emt 0:03:06] B12: Caro-Kann: Advance Variation} (5... Bxd3 6. Qxd3 Qa5+ 7. c3 Qa6 8. Qxa6 Nxa6 9. Be3 c5 10. Nbd2 Rc8 11. Ke2 Ne7 12. dxc5 Nxc5 13. Bxc5 Rxc5 14. Nd4 Ng6 15. N2f3 Nf4+ 16. Kf1 Be7 {½-½ (45) Lewicki,M (2384)-Socko,B (2593) Katowice 2018}) 6. h4 {[%emt 0:00:31]} Qb6 {[%emt 0:03:27]} 7. Bxg6 $146 {[%emt 0:05:41]} ({Predecessor:} 7. h5 Bxd3 8. Qxd3 Qa6 9. Qxa6 Nxa6 10. c3 Ne7 11. Nbd2 c5 12. Nb3 Nc6 13. dxc5 Nxc5 14. Nxc5 Bxc5 {0-1 (55) Klein,P (1964)-Koren,J (2108) Slovakia 2018}) 7... hxg6 {[%emt 0:00:09]} 8. c3 {[%emt 0:00:26]} c5 {[%emt 0:01:31]} 9. Nbd2 {[%emt 0:04:36]} cxd4 {[%emt 0:08:04]} 10. cxd4 {[%emt 0:02:08]} Nc6 {[%emt 0:00:29]} 11. Nb3 {[%emt 0:08:12]} Nh6 {[%emt 0:01:38]} 12. Bg5 {[%emt 0:03:08]} Nf5 {[%emt 0:08:36]} 13. O-O {[%emt 0:04:33]} Be7 {[%emt 0:03:18]} 14. Bxe7 {[%emt 0:03:08]} Ncxe7 {[%emt 0:00:07]} 15. g3 {[%emt 0:00:50]} Rc8 {[%emt 0:03:29]} 16. Qd2 {[%emt 0:05:52]} O-O {[%emt 0:02:26]} 17. g4 {[%emt 0:02:00]} Nh6 {[%emt 0:00:24]} 18. Qg5 {[%emt 0:00:47]} Rc7 {[%emt 0:08:05]} 19. Kg2 {[%emt 0:02:30]} Qb5 {[%emt 0:02:39]} 20. Rad1 $11 {[%emt 0:03:46]} Re8 {[%emt 0:09:20]} 21. Rd2 {[%emt 0:05:14]} Rec8 {[%emt 0:06:50]} 22. Nc5 {[%emt 0:04:45]} Kf8 {[%emt 0:09:54]} 23. Qf4 {[%emt 0:02:36]} Ke8 {[%emt 0:04:37]} 24. Rh1 {[%emt 0:10:41]} b6 {[%emt 0:00:43]} 25. a4 {[%emt 0:01:12]} Qa5 {[%emt 0:01:19]} 26. b4 {[%emt 0:01:08]} Qxb4 {[%emt 0:00:24]} 27. Na6 {[%emt 0:00:15]} Qxa4 {[%emt 0:00:22]} 28. Nxc7+ {[%emt 0:00:03]} Rxc7 {[%emt 0:00:08]} 29. h5 {[%emt 0:01:08]} gxh5 {[%emt 0:01:59]} 30. Rxh5 {[%emt 0:02:20]} Qb3 {[%emt 0:02:35]} 31. Rh3 {[%emt 0:05:37]} Rc3 {[%emt 0:03:21]} 32. Ng5 {[%emt 0:05:47]} Ng6 {[%emt 0:02:03]} 33. Qh2 {[%emt 0:00:06]} Rxh3 {[%emt 0:03:10]} 34. Nxh3 {[%emt 0:00:21]} Nh4+ {[%emt 0:01:22]} 0-1

[Event "SWE-ch Masters 2018"]
[Site "Ronneby"]
[Date "2018.07.07"]
[Round "8"]
[White "Lindvall, Johannes"]
[Black "Walinder, Lars"]
[Result "0-1"]
[ECO "B51"]
[WhiteElo "2010"]
[BlackElo "2231"]
[Annotator "NA"]
[PlyCount "170"]
[EventDate "2018.06.30"]
[EventType "tourn"]
[EventCountry "SWE"]
[SourceTitle "playchess.com"]
[Source "ChessBase"]
[SourceQuality "1"]
[TimeControl "40/5400+30:1800+30"]

1. e4 {[%emt 0:00:00]} c5 {[%emt 0:00:00]} 2. Nf3 {[%emt 0:00:00]} d6 {[%emt 0:00:00]} 3. Bb5+ {[%emt 0:00:00]} Nd7 {[%emt 0:00:09]} 4. d4 {[%emt 0:01:46]} cxd4 {[%emt 0:00:21]} 5. Qxd4 {[%emt 0:00:20]} a6 {[%emt 0:00:28]} 6. Bxd7+ {[%emt 0:01:57]} Bxd7 {[%emt 0:00:10]} 7. c4 {[%emt 0:00:08]} Rc8 {[%emt 0:03:42]} 8. Nc3 {[%emt 0:01:48]} Qc7 {[%emt 0:07:44]} 9. b3 {[%emt 0:07:44]} e5 {[%emt 0:27:20]} 10. Qd1 {[%emt 0:19:42]} b5 {[%emt 0:02:43]} 11. Nd5 {[%emt 0:00:52]} Qb7 {[%emt 0:02:13]} 12. Be3 {[%emt 0:18:32]} Bc6 {[%emt 0:01:36]} 13. O-O {[%emt 0:03:34]} Nf6 {[%emt 0:13:04]} 14. Qd3 {[%emt 0:07:27]} Be7 {[%emt 0:05:17]} 15. a4 {[%emt 0:04:51]} Bxd5 {[%emt 0:12:08]} 16. cxd5 {[%emt 0:00:24]} b4 {[%emt 0:00:10]} 17. Rac1 {[%emt 0:07:23]} O-O {[%emt 0:00:59]} 18. Nd2 {[%emt 0:04:03]} Nd7 {[%emt 0:07:40]} 19. Nc4 {[%emt 0:03:33]} Nc5 {[%emt 0:00:37]} 20. Bxc5 {[%emt 0:00:34]} Rxc5 {[%emt 0:00:18]} 21. Rc2 {[%emt 0:02:48]} Qc7 {[%emt 0:00:59]} 22. f4 {[%emt 0:05:58]} exf4 {[%emt 0:01:22]} 23. Rxf4 {[%emt 0:00:03]} g6 {[%emt 0:04:03]} 24. Rcf2 {[%emt 0:01:11]} Bg5 {[%emt 0:00:12]} 25. Rg4 {[%emt 0:00:55]} Qe7 {[%emt 0:01:59]} 26. Rf1 {[%emt 0:02:54]} Bf6 {[%emt 0:02:14]} 27. Rgf4 {[%emt 0:01:18]} Bg7 {[%emt 0:00:23]} 28. Re1 {[%emt 0:01:34]} Bh6 {[%emt 0:01:35]} 29. Rf3 {[%emt 0:00:26]} Bg7 {[%emt 0:00:29]} 30. Rfe3 {[%emt 0:00:53]} a5 {[%emt 0:02:24]} 31. Kh1 {[%emt 0:01:28]} Bc3 {[%emt 0:00:06]} 32. Rf1 {[%emt 0:00:06]} Bg7 {[%emt 0:00:07]} 33. Rfe1 {[%emt 0:00:06]} Be5 {[%emt 0:00:25]} 34. Rh3 {[%emt 0:00:15]} h5 {[%emt 0:00:32]} 35. Qe3 {[%emt 0:00:11]} Kg7 {[%emt 0:00:35]} 36. g4 {[%emt 0:01:19]} h4 {[%emt 0:01:38]} 37. Nxe5 {[%emt 0:01:24]} Qxe5 {[%emt 0:00:02]} 38. Rxh4 {[%emt 0:00:05]} Rh8 {[%emt 0:00:45]} 39. Rxh8 {[%emt 0:01:17]} Kxh8 {[%emt 0:00:03]} 40. Rb1 {[%emt 0:00:17]} Rc2 {[%emt 0:02:01]} 41. Qh6+ {[%emt 0:06:01]} Kg8 {[%emt 0:00:09]} 42. Re1 {[%emt 0:00:51]} Qf6 {[%emt 0:16:48]} 43. Qe3 {[%emt 0:09:33]} Qh4 {[%emt 0:00:35]} 44. Re2 {[%emt 0:02:09]} Rc3 {[%emt 0:01:03]} 45. Qf4 {[%emt 0:02:06]} Rxb3 {[%emt 0:02:26]} 46. Rc2 {[%emt 0:02:56]} Rc3 {[%emt 0:07:00]} 47. Rf2 {[%emt 0:02:14]} Qe7 {[%emt 0:00:42]} 48. g5 {[%emt 0:05:46]} b3 {[%emt 0:01:10]} 49. h4 {[%emt 0:02:36]} Rc2 {[%emt 0:02:36]} 50. Rf1 {[%emt 0:00:02]} b2 {[%emt 0:01:04]} 51. h5 {[%emt 0:00:43]} gxh5 {[%emt 0:00:21]} 52. g6 {[%emt 0:00:47]} fxg6 {[%emt 0:00:22]} 53. e5 {[%emt 0:00:16]} Rc1 {[%emt 0:02:03]} 54. Rxc1 {[%emt 0:00:23]} bxc1=Q+ {[%emt 0:00:15]} 55. Qxc1 {[%emt 0:00:02]} Qh4+ {[%emt 0:00:52]} 56. Kg2 {[%emt 0:00:25]} Qe4+ {[%emt 0:00:20]} 57. Kf2 {[%emt 0:00:05]} Qf5+ {[%emt 0:00:37]} 58. Kg2 {[%emt 0:00:35]} Qxe5 {[%emt 0:00:46]} 59. Qc8+ {[%emt 0:00:12]} Kh7 {[%emt 0:00:24]} 60. Qc7+ {[%emt 0:00:17]} Kh6 {[%emt 0:00:06]} 61. Qxa5 {[%emt 0:00:33]} Qg5+ {[%emt 0:00:53]} 62. Kf1 {[%emt 0:00:35]} Qf4+ {[%emt 0:00:21]} 63. Ke1 {[%emt 0:00:05]} h4 {[%emt 0:00:38]} 64. Qa8 {[%emt 0:00:57]} Qe3+ {[%emt 0:00:48]} 65. Kd1 {[%emt 0:00:18]} Qd3+ {[%emt 0:00:39]} 66. Ke1 {[%emt 0:00:35]} Qg3+ {[%emt 0:00:16]} 67. Kf1 {[%emt 0:00:11]} Kh5 {[%emt 0:00:47]} 68. Qh8+ {[%emt 0:00:49]} Kg5 {[%emt 0:00:12]} 69. Qd8+ {[%emt 0:00:06]} Kf5 {[%emt 0:00:11]} 70. Qc8+ {[%emt 0:00:54]} Kf4 {[%emt 0:00:00]} 71. Qc4+ {[%emt 0:01:40]} Ke5 {[%emt 0:00:48]} 72. Qe2+ {[%emt 0:01:27]} Kxd5 {[%emt 0:00:20]} 73. Qb5+ {[%emt 0:00:13]} Ke6 {[%emt 0:00:47]} 74. Qe8+ {[%emt 0:00:17]} Kf6 {[%emt 0:00:18]} 75. Qf8+ {[%emt 0:00:51]} Kg5 {[%emt 0:00:46]} 76. Qe7+ {[%emt 0:00:22]} Kh6 {[%emt 0:00:31]} 77. Qf8+ {[%emt 0:00:32]} Kh5 {[%emt 0:00:15]} 78. Qh8+ {[%emt 0:00:18]} Kg5 {[%emt 0:01:00]} 79. Qd8+ {[%emt 0:00:31]} Kf5 {[%emt 0:00:09]} 80. Qc8+ {[%emt 0:00:12]} Ke5 {[%emt 0:00:17]} 81. Qe8+ {[%emt 0:00:44]} Kd4 {[%emt 0:00:41]} 82. Qh8+ {[%emt 0:00:16]} Kd3 {[%emt 0:00:40]} 83. Qb2 {[%emt 0:01:16]} Qf4+ {[%emt 0:00:35]} 84. Ke1 {[%emt 0:00:39]} Qe4+ {[%emt 0:00:20]} 85. Kf1 {[%emt 0:00:13]} Qh1+ {[%emt 0:00:07]} 0-1